bitfinex/quotes_SOLUSD_20250313
["timestamp","ask_amount","ask_price","bid_price","bid_amount"]
[1741830437039,9.5613,125.61,125.57,22.30242306]
[1741830438523,9.60516961,125.68,125.61,0.14216157]
[1741830438724,0.063,125.7,125.67,22.30242306]
[1741830438926,0.063,125.72,125.69,69.19239506]
[1741830439241,22.30242306,125.83,125.77,20.0]
[1741830439445,1.6526,125.84,125.78,22.30242306]
[1741830439631,1.6526,125.84,125.74,25.80964886]
[1741830439632,22.30242306,125.82,125.76,22.30242306]
[1741830439829,1.6526,125.84,125.76,22.30242306]
[1741830440032,22.30242306,125.82,125.77,22.30242306]
[1741830440952,22.30242306,125.84,125.79,22.30242306]
[1741830441442,22.30242306,125.84,125.78,38.68140795]
[1741830441843,22.30242306,125.82,125.81,12.34577289]
[1741830442246,22.30242306,125.83,125.81,12.34577289]
[1741830443055,22.30242306,125.83,125.78,22.30242306]
[1741830443953,22.30242306,125.84,125.78,22.30242306]
[1741830444150,22.30242306,125.83,125.78,22.30242306]
[1741830444643,22.33242306,125.83,125.78,22.30242306]
[1741830445245,22.33242306,125.83,125.77,22.30242306]
[1741830445626,22.30242306,125.81,125.75,22.30242306]
[1741830446136,22.30242306,125.81,125.76,22.30242306]
[1741830447155,22.30242306,125.81,125.76,30.25372306]
[1741830447330,22.30242306,125.81,125.76,22.30242306]
[1741830448534,22.30242306,125.81,125.76,30.25382306]
[1741830448736,22.30242306,125.82,125.77,22.30242306]
[1741830449754,22.30242306,125.82,125.77,30.25322306]
[1741830449933,40.98207192,125.83,125.77,30.25322306]
[1741830450127,22.33242306,125.83,125.78,22.30242306]
[1741830450333,0.03,125.83,125.79,22.30242306]
[1741830451257,0.03,125.83,125.8,22.30242306]
[1741830452149,0.03,125.83,125.81,17.73012182]
[1741830452364,22.30242306,125.83,125.81,17.73012182]
[1741830452862,0.14216157,125.86,125.81,17.73012182]
[1741830452863,22.30242306,125.82,125.81,17.73012182]
[1741830453231,22.30242306,125.82,125.77,22.30242306]
[1741830454039,30.25012306,125.83,125.77,22.30242306]
[1741830454364,22.30242306,125.84,125.79,22.30242306]
[1741830454649,22.30242306,125.84,125.78,22.30242306]
[1741830454832,30.24832306,125.85,125.79,22.30242306]
[1741830455146,22.30242306,125.85,125.79,22.30242306]
[1741830455456,22.30242306,125.85,125.8,22.30242306]
[1741830455861,30.24852306,125.85,125.79,22.30242306]
[1741830456034,5.5111,125.87,125.78,15.0903]
[1741830456234,30.24782306,125.86,125.8,22.30242306]
[1741830456555,30.27782306,125.86,125.8,22.30242306]
[1741830456735,7.9754,125.86,125.81,22.30242306]
[1741830457065,0.03,125.86,125.82,22.30242306]
[1741830458262,0.03,125.86,125.82,30.25012306]
[1741830458464,0.03,125.86,125.83,22.30242306]
[1741830458758,0.03,125.86,125.85,22.30242306]
[1741830459450,0.03,125.86,125.84,22.30242306]
[1741830460156,0.03,125.86,125.82,22.30242306]
[1741830460352,22.33242306,125.86,125.81,22.30242306]
[1741830461546,7.9459,125.85,125.81,22.30242306]
[1741830462144,7.9459,125.85,125.8,22.30242306]
[1741830462349,30.24832306,125.85,125.79,18.71264886]
[1741830462663,30.24832306,125.85,125.8,22.30242306]
[1741830463473,7.9753,125.86,125.81,22.30242306]
[1741830463668,30.27772306,125.86,125.8,22.30242306]
[1741830463968,50.14102306,125.86,125.8,22.30242306]
[1741830464156,22.30242306,125.85,125.8,22.30242306]
[1741830464353,22.30242306,125.85,125.79,22.36542306]
[1741830464950,22.30242306,125.84,125.79,22.36542306]
[1741830465667,7.9472,125.83,125.79,22.36542306]
[1741830465965,7.9472,125.83,125.8,22.30242306]
[1741830466265,7.9472,125.83,125.79,22.36542306]
[1741830468969,22.30242306,125.85,125.79,22.36542306]
[1741830469265,7.9465,125.84,125.79,22.36542306]
[1741830469468,50.11532306,125.84,125.79,0.063]
[1741830469674,22.30242306,125.82,125.79,0.063]
[1741830469842,22.30242306,125.8,125.79,0.063]
[1741830471176,30.39368463,125.8,125.79,0.0001]
[1741830472169,30.5358462,125.8,125.79,0.0001]
[1741830474243,137.6999,125.76,125.71,22.30242306]
[1741830474571,22.30242306,125.76,125.71,22.30242306]
[1741830474758,22.30242306,125.77,125.72,22.30242306]
[1741830475678,22.30242306,125.78,125.72,22.30242306]
[1741830475973,37.39272306,125.79,125.74,22.30242306]
[1741830476149,7.9493,125.8,125.75,22.30242306]
[1741830476348,7.9493,125.8,125.76,22.30242306]
[1741830476660,7.9478,125.82,125.78,22.30242306]
[1741830478876,22.30242306,125.81,125.76,22.30242306]
[1741830479180,22.30242306,125.79,125.74,22.30242306]
[1741830479361,22.30242306,125.8,125.74,22.30242306]
[1741830479555,22.30242306,125.8,125.75,22.30242306]
[1741830480273,7.9497,125.79,125.75,22.30242306]
[1741830480481,7.9497,125.79,125.74,22.30242306]
[1741830480852,7.9497,125.79,125.75,22.30242306]
[1741830482360,7.9491,125.8,125.75,22.30242306]
[1741830482971,30.25152306,125.8,125.75,22.30242306]
[1741830483177,0.03,125.86,125.8,18.64964886]
[1741830483364,0.03,125.86,125.83,22.30242306]
[1741830483553,0.03,125.86,125.84,22.30242306]
[1741830483878,0.03,125.86,125.83,22.30242306]
[1741830484082,0.03,125.86,125.85,20.0]
[1741830484283,0.03,125.86,125.85,55.53183657]
[1741830484474,0.03,125.86,125.85,35.53183657]
[1741830487775,0.03,125.86,125.83,35.53183657]
[1741830488278,0.03,125.86,125.82,35.53183657]
[1741830488876,0.03,125.86,125.83,35.53183657]
[1741830490978,0.03,125.86,125.85,35.53183657]
[1741830491179,0.03,125.86,125.85,54.18148543]
[1741830494268,0.03,125.86,125.85,35.53183657]
[1741830495771,35.53183657,125.9,125.85,35.53183657]
[1741830497283,7.9434,125.89,125.85,35.53183657]
[1741830499289,7.9428,125.9,125.86,35.53183657]
[1741830499497,7.9428,125.9,125.87,35.53183657]
[1741830499789,7.9423,125.91,125.87,35.53183657]
[1741830502279,7.9423,125.91,125.88,35.53183657]
[1741830502894,7.9415,125.92,125.88,35.53183657]
[1741830503378,7.9415,125.92,125.87,35.53183657]
[1741830503379,43.47333657,125.92,125.87,35.53183657]
[1741830504192,0.03,125.91,125.87,35.53183657]
[1741830504868,35.56183657,125.91,125.85,0.063]
[1741830505194,35.53183657,125.9,125.85,0.063]
[1741830505771,35.53183657,125.87,125.85,0.063]
[1741830506191,35.53183657,125.88,125.85,0.063]
[1741830506396,22.21849406,125.89,125.85,0.063]
[1741830507408,22.21849406,125.88,125.85,0.063]
[1741830507795,50.02059406,125.89,125.85,0.063]
[1741830508799,22.21849406,125.88,125.85,0.063]
[1741830508995,50.02059406,125.89,125.85,0.063]
[1741830513714,7.9434,125.89,125.86,22.21849406]
[1741830515389,7.9428,125.9,125.86,22.21849406]
[1741830520496,22.21849406,125.89,125.85,0.063]
[1741830520881,22.36065563,125.88,125.85,0.063]
[1741830522092,50.01829406,125.9,125.85,22.28149406]
[1741830522613,50.01829406,125.9,125.85,0.063]
[1741830522815,7.9428,125.9,125.85,22.28149406]
[1741830522996,7.9428,125.9,125.86,22.21849406]
[1741830524419,7.9428,125.9,125.86,23.78659406]
[1741830524590,0.03,125.91,125.88,22.21849406]
[1741830525115,0.03,125.91,125.89,22.21849406]
[1741830526404,0.03,125.91,125.88,22.21849406]
[1741830530007,0.03,125.91,125.87,28.70289406]
[1741830531107,7.9721,125.91,125.87,28.70289406]
[1741830532824,0.03,125.91,125.88,22.21849406]
[1741830535219,0.03,125.91,125.89,22.21849406]
[1741830536601,0.03,125.91,125.88,22.21849406]
[1741830539722,0.03,125.91,125.88,22.28149406]
[1741830540125,0.03,125.91,125.89,22.21849406]
[1741830540318,0.03,125.91,125.89,14.20716146]
[1741830540624,0.03,125.91,125.9,32.85681032]
[1741830540920,0.03,125.91,125.9,34.77653346]
[1741830541622,0.03,125.96,125.91,18.64964886]
[1741830541826,0.03,125.96,125.95,14.20716146]
[1741830542305,0.03,125.96,125.95,22.17538579]
[1741830543102,0.03,125.96,125.95,49.16655779]
[1741830543305,0.03,126.03,126.02,20.0]
[1741830543522,0.03,126.03,126.02,68.24935779]
[1741830545334,0.03,126.03,126.02,67.96503465]
[1741830545819,0.03,126.03,126.02,68.24935779]
[1741830546613,0.03,126.04,126.03,18.64964886]
[1741830546928,0.03,126.04,126.03,40.82503465]
[1741830547533,7.9295,126.11,126.07,25.34621043]
[1741830547713,7.9283,126.13,126.1,22.17538579]
[1741830548932,7.9283,126.13,126.09,22.17538579]
[1741830549829,7.9283,126.13,126.07,32.32404886]
[1741830549830,27.7491,126.13,126.08,29.29538579]
[1741830550037,7.9283,126.13,126.09,22.17538579]
[1741830551630,7.9283,126.13,126.11,22.17538579]
[1741830551838,7.9283,126.13,126.1,22.17538579]
[1741830552135,7.9283,126.13,126.09,40.82503465]
[1741830552513,7.9583,126.13,126.09,40.82503465]
[1741830553142,27.7791,126.13,126.1,22.17538579]
[1741830553323,7.9583,126.13,126.1,22.17538579]
[1741830554231,7.9583,126.13,126.11,22.17538579]
[1741830554936,7.9583,126.13,126.1,22.17538579]
[1741830555139,7.9583,126.13,126.11,22.17538579]
[1741830555339,7.9583,126.13,126.09,40.82503465]
[1741830555716,7.9583,126.13,126.1,22.17538579]
[1741830556929,30.13368579,126.13,126.08,47.94503465]
[1741830557149,49.95448579,126.13,126.08,29.29538579]
[1741830557439,49.95448579,126.13,126.07,47.37943465]
[1741830557625,22.17538579,126.12,126.07,47.37943465]
[1741830558325,22.17538579,126.11,126.05,18.64964886]
[1741830558528,22.17538579,126.12,126.07,22.17538579]
[1741830559120,7.9289,126.12,126.08,22.17538579]
[1741830559427,7.9289,126.12,126.09,22.17538579]
[1741830560217,7.9289,126.12,126.1,22.17538579]
[1741830560422,7.9584,126.13,126.1,22.17538579]
[1741830563673,7.9584,126.13,126.09,22.17538579]
[1741830563846,27.7792,126.13,126.09,22.17538579]
[1741830564531,7.9584,126.13,126.1,40.82503465]
[1741830564848,7.9584,126.13,126.11,22.17538579]
[1741830566248,0.03,126.13,126.11,22.17538579]
[1741830566738,0.03,126.13,126.12,22.17538579]
[1741830567347,0.03,126.13,126.11,22.17538579]
[1741830569154,0.03,126.13,126.1,28.31768579]
[1741830570248,0.03,126.13,126.1,22.17538579]
[1741830570438,0.03,126.13,126.09,40.82503465]
[1741830570747,0.03,126.13,126.09,22.17538579]
[1741830571452,0.03,126.13,126.11,22.17538579]
[1741830572332,0.03,126.13,126.1,22.17538579]
[1741830572534,0.03,126.13,126.09,22.17538579]
[1741830573245,0.03,126.13,126.08,18.64964886]
[1741830573445,0.03,126.13,126.09,22.17538579]
[1741830576458,0.03,126.13,126.1,22.17538579]
[1741830577254,22.20538579,126.13,126.08,22.17538579]
[1741830577946,7.9289,126.12,126.08,22.17538579]
[1741830578148,27.7512,126.12,126.08,22.17538579]
[1741830578345,49.92658579,126.12,126.07,40.82503465]
[1741830578683,22.17538579,126.11,126.05,22.17538579]
[1741830578960,22.17538579,126.11,126.06,22.17538579]
[1741830579843,27.7557,126.1,126.06,22.17538579]
[1741830580353,49.93108579,126.1,126.05,22.17538579]
[1741830580553,22.17538579,126.08,126.04,0.063]
[1741830581668,7.9321,126.07,126.04,0.063]
[1741830581953,49.93768579,126.07,126.04,0.063]
[1741830583543,22.17538579,126.05,126.04,0.063]
[1741830584055,22.17538579,126.06,126.04,0.063]
[1741830585448,7.9314,126.08,126.04,22.23838579]
[1741830585644,7.9308,126.09,126.06,22.17538579]
[1741830585862,7.9295,126.11,126.07,22.17538579]
[1741830586233,23.67978579,126.12,126.08,22.17538579]
[1741830586234,7.929,126.12,126.08,22.17538579]
[1741830586557,7.929,126.12,126.09,22.17538579]
[1741830586949,7.929,126.12,126.08,22.17538579]
[1741830587735,7.929,126.12,126.06,24.83254886]
[1741830587936,7.929,126.12,126.08,22.17538579]
[1741830588847,30.10438579,126.12,126.07,22.17538579]
[1741830589257,7.929,126.12,126.08,22.17538579]
[1741830589840,30.10438579,126.12,126.07,22.17538579]
[1741830590036,30.10438579,126.12,126.06,28.35828579]
[1741830590236,30.10438579,126.12,126.04,7.183]
[1741830590237,22.17538579,126.1,126.05,22.17538579]
[1741830590447,22.17538579,126.09,126.04,22.23838579]
[1741830590656,22.17538579,126.09,126.04,0.063]
[1741830591651,7.9314,126.08,126.05,22.17538579]
[1741830592044,0.14216157,126.11,126.04,0.063]
[1741830592045,30.10488579,126.11,126.06,22.17538579]
[1741830592968,49.92878579,126.11,126.05,22.17538579]
[1741830594550,30.10488579,126.11,126.06,22.17538579]
[1741830595164,7.9295,126.11,126.07,22.17538579]
[1741830597162,30.10488579,126.11,126.06,29.29538579]
[1741830597479,7.9295,126.11,126.07,22.17538579]
[1741830598785,30.10488579,126.11,126.06,29.29538579]
[1741830598984,49.92878579,126.11,126.06,29.29538579]
[1741830599973,7.9295,126.11,126.07,22.17538579]
[1741830600470,30.10488579,126.11,126.06,29.29538579]
[1741830600855,7.9295,126.11,126.06,29.29538579]
[1741830601460,30.10488579,126.11,126.06,29.29538579]
[1741830601658,30.10488579,126.11,126.05,22.17538579]
[1741830601860,22.17538579,126.1,126.04,22.23838579]
[1741830602376,7.9308,126.09,126.04,22.23838579]
[1741830602561,7.9308,126.09,126.05,22.17538579]
[1741830604676,7.9302,126.1,126.05,22.17538579]
[1741830604983,7.9302,126.1,126.06,22.17538579]
[1741830605357,7.9302,126.1,126.05,22.17538579]
[1741830605665,30.10558579,126.1,126.05,22.17538579]
[1741830606177,7.9302,126.1,126.05,22.17538579]
[1741830607879,7.9302,126.1,126.06,22.17538579]
[1741830608080,7.9289,126.12,126.08,22.17538579]
[1741830608663,7.9289,126.12,126.07,22.17538579]
[1741830609872,30.10428579,126.12,126.07,22.17538579]
[1741830610277,29.10428579,126.12,126.07,22.17538579]
[1741830610785,22.17538579,126.11,126.06,42.17538579]
[1741830610986,48.92658579,126.12,126.06,42.17538579]
[1741830611188,48.95658579,126.12,126.07,22.17538579]
[1741830612165,48.95658579,126.12,126.06,42.17538579]
[1741830612567,26.7812,126.12,126.07,22.17538579]
[1741830612976,22.17538579,126.11,126.05,22.17538579]
[1741830613369,22.17538579,126.11,126.06,22.17538579]
[1741830613578,22.17538579,126.11,126.05,22.17538579]
[1741830614291,22.17538579,126.1,126.04,0.063]
[1741830614486,22.17538579,126.1,126.05,22.17538579]
[1741830614781,7.9302,126.1,126.06,22.17538579]
[1741830615180,7.9302,126.1,126.05,22.17538579]
[1741830616226,27.7557,126.1,126.05,22.17538579]
[1741830617168,27.7557,126.1,126.06,22.17538579]
[1741830617169,7.9302,126.1,126.06,22.17538579]
[1741830617374,7.9297,126.11,126.07,22.17538579]
[1741830617785,7.9589,126.12,126.07,22.17538579]
[1741830617981,49.95658579,126.12,126.07,22.17538579]
[1741830618677,22.17538579,126.11,126.06,22.17538579]
[1741830618883,49.95658579,126.12,126.07,22.17538579]
[1741830619404,49.95658579,126.12,126.04,7.9969]
[1741830619405,49.95658579,126.12,126.06,22.17538579]
[1741830619901,22.17538579,126.11,126.06,22.17538579]
[1741830620101,22.17538579,126.07,126.04,0.063]
[1741830620274,14.17962266,126.06,126.04,0.063]
[1741830620904,15.84132266,126.07,126.04,0.063]
[1741830621399,1.6617,126.07,126.04,0.063]
[1741830621774,15.84132266,126.07,126.04,0.063]
[1741830621993,7.9327,126.06,126.04,0.063]
[1741830626295,9.5938,126.07,126.04,0.063]
[1741830628300,31.74533353,126.07,126.04,0.063]
[1741830628504,22.15153353,126.06,126.04,0.063]
[1741830629222,51.57553353,126.07,126.04,0.063]
[1741830630106,9.5938,126.07,126.04,0.063]
[1741830630814,7.9321,126.07,126.04,22.21453353]
[1741830631309,29.27153353,126.09,126.04,22.21453353]
[1741830631509,7.9317,126.08,126.04,22.21453353]
[1741830639517,7.9317,126.08,126.04,0.063]
[1741830640092,30.08323353,126.08,126.04,0.063]
[1741830640493,7.9317,126.08,126.04,0.063]
[1741830640708,7.9317,126.08,126.05,22.15153353]
[1741830641314,7.9317,126.08,126.06,22.15153353]
[1741830641500,7.9302,126.1,126.06,22.15153353]
[1741830641701,7.9302,126.1,126.07,22.15153353]
[1741830641893,7.9302,126.1,126.06,22.15153353]
[1741830642313,14.16787546,126.11,126.06,14.16787546]
[1741830643313,22.12677546,126.12,126.07,14.16787546]
[1741830643614,7.9589,126.12,126.08,14.16787546]
[1741830643813,0.03,126.12,126.11,14.16787546]
[1741830644813,0.03,126.12,126.11,48.15134746]
[1741830645002,0.03,126.12,126.11,104.8228493]
[1741830645200,0.03,126.13,126.12,91.08242616]
[1741830646245,0.03,126.13,126.12,20.24304886]
[1741830646407,0.03,126.13,126.12,42.35265166]
[1741830646608,0.03,126.13,126.12,64.46225446]
[1741830647616,0.03,126.13,126.12,71.58225446]
[1741830647807,0.03,126.13,126.12,49.47265166]
[1741830648005,0.03,126.13,126.12,79.7954776]
[1741830648211,7.922,126.23,126.18,22.1096028]
[1741830648404,7.922,126.23,126.19,22.1096028]
[1741830649127,7.922,126.23,126.18,22.1096028]
[1741830649312,30.0316028,126.23,126.18,22.1096028]
[1741830650617,22.1096028,126.22,126.16,29.2296028]
[1741830650823,22.1096028,126.21,126.16,22.1096028]
[1741830651315,22.1096028,126.22,126.16,22.1096028]
[1741830651718,7.922,126.23,126.19,22.1096028]
[1741830652018,7.9509,126.25,126.22,22.1096028]
[1741830652221,0.03,126.25,126.22,22.1096028]
[1741830653338,0.03,126.25,126.23,22.1096028]
[1741830654000,0.03,126.25,126.22,22.1096028]
[1741830655323,0.03,126.25,126.23,22.1096028]
[1741830655531,0.03,126.25,126.24,22.1096028]
[1741830656117,0.03,126.25,126.23,29.2096028]
[1741830656914,7.4797,126.27,126.23,29.2096028]
[1741830657403,7.4797,126.27,126.23,7.1]
[1741830657830,22.1096028,126.27,126.23,7.1]
[1741830658013,41.9072028,126.28,126.23,29.2096028]
[1741830658410,7.9164,126.32,126.25,6.0673]
[1741830658721,9.4191,126.33,126.28,22.1096028]
[1741830659026,9.4191,126.33,126.26,22.1096028]
[1741830659027,22.1096028,126.31,126.26,22.1096028]
[1741830659608,22.1096028,126.32,126.27,22.1096028]
[1741830659802,31.5287028,126.33,126.28,22.1096028]
[1741830660003,22.1096028,126.33,126.28,22.1096028]
[1741830660313,30.0256028,126.33,126.28,22.1096028]
[1741830660511,22.1096028,126.33,126.28,22.1096028]
[1741830660711,30.0249028,126.34,126.29,22.1096028]
[1741830660912,30.0249028,126.34,126.28,22.1096028]
[1741830661530,1.5719,126.36,126.29,22.1096028]
[1741830661709,22.1096028,126.34,126.29,29.2096028]
[1741830662944,22.1096028,126.35,126.3,22.1096028]
[1741830663120,30.0241028,126.35,126.3,22.1096028]
[1741830663442,22.1096028,126.34,126.29,29.2096028]
[1741830664532,30.0250028,126.34,126.29,29.2096028]
[1741830665243,22.1096028,126.33,126.29,7.1]
[1741830665421,22.1096028,126.32,126.26,22.1096028]
[1741830665739,22.1096028,126.31,126.26,22.1096028]
[1741830666751,7.9176,126.3,126.26,22.1096028]
[1741830667316,30.0253028,126.33,126.27,22.1096028]
[1741830667646,7.9157,126.33,126.29,1.6189]
[1741830667822,7.9126,126.38,126.34,20.0]
[1741830668024,7.9126,126.38,126.31,25.15534886]
[1741830668512,7.9126,126.38,126.31,6.5057]
[1741830668713,22.1096028,126.36,126.31,6.5057]
[1741830669028,7.9126,126.38,126.31,22.1096028]
[1741830669423,22.1096028,126.36,126.31,22.1096028]
[1741830669619,22.1096028,126.36,126.3,22.1096028]
[1741830670119,7.9126,126.38,126.31,22.1096028]
[1741830670440,22.1096028,126.35,126.3,22.1096028]
[1741830670741,30.0243028,126.35,126.3,22.1096028]
[1741830671244,30.0543028,126.35,126.3,22.1096028]
[1741830671437,0.03,126.35,126.33,22.1096028]
[1741830671624,0.03,126.35,126.34,22.1096028]
[1741830672019,0.03,126.35,126.34,46.92595166]
[1741830672835,0.03,126.35,126.34,54.84105166]
[1741830673217,0.03,126.35,126.34,77.2349776]
[1741830673442,2.8350426,126.39,126.38,38.64964886]
[1741830673647,7.9057,126.5,126.39,0.28432314]
[1741830673844,7.9057,126.5,126.42,22.1096028]
[1741830674139,7.9045,126.51,126.46,22.1096028]
[1741830674352,7.9045,126.51,126.47,35.19392319]
[1741830674927,44.66612319,126.52,126.47,35.19392319]
[1741830675126,9.4722,126.52,126.47,35.19392319]
[1741830675325,9.4722,126.52,126.46,20.0]
[1741830675546,43.09592319,126.55,126.49,35.19392319]
[1741830675736,7.902,126.55,126.51,35.19392319]
[1741830675925,7.9014,126.56,126.51,35.19392319]
[1741830676134,43.09532319,126.56,126.48,7.48]
[1741830676449,35.19392319,126.54,126.49,35.19392319]
[1741830676749,35.19392319,126.55,126.5,35.19392319]
[1741830676925,35.19392319,126.52,126.45,6.0438]
[1741830677120,0.28432314,126.56,126.47,35.19392319]
[1741830677343,35.19392319,126.53,126.48,35.19392319]
[1741830677541,35.19392319,126.54,126.49,35.19392319]
[1741830677745,35.19392319,126.53,126.48,35.19392319]
[1741830678051,7.9007,126.57,126.52,35.19392319]
[1741830678224,43.09342319,126.59,126.54,35.19392319]
[1741830678438,42.46210417,126.64,126.54,35.19392319]
[1741830678439,4.4226426,126.64,126.57,35.19392319]
[1741830678643,35.19392319,126.62,126.57,35.19392319]
[1741830678849,7.897,126.63,126.57,35.19392319]
[1741830679061,4.4226426,126.64,126.6,35.19392319]
[1741830679062,2.8350426,126.64,126.6,35.19392319]
[1741830679239,2.8350426,126.64,126.63,35.19392319]
[1741830680132,10.7313426,126.64,126.61,18.64964886]
[1741830680457,45.92526579,126.64,126.57,38.64964886]
[1741830680627,10.7313426,126.64,126.59,35.19392319]
[1741830680950,35.19392319,126.63,126.55,0.28432314]
[1741830681256,35.19392319,126.59,126.54,35.19392319]
[1741830681840,35.19392319,126.59,126.53,35.19392319]
[1741830682045,35.19392319,126.58,126.53,35.19392319]
[1741830682247,35.19392319,126.56,126.51,35.19392319]
[1741830682434,35.19392319,126.55,126.47,6.4512]
[1741830682752,35.19392319,126.54,126.49,35.19392319]
[1741830682959,43.09712319,126.53,126.48,35.19392319]
[1741830683641,7.9032,126.53,126.5,35.19392319]
[1741830683842,7.902,126.55,126.51,35.19392319]
[1741830684244,19.751,126.58,126.52,35.19392319]
[1741830684554,7.9012,126.57,126.53,35.19392319]
[1741830684962,43.09402319,126.58,126.53,35.19392319]
[1741830685141,7.9001,126.58,126.54,35.19392319]
[1741830685351,7.9001,126.58,126.53,35.19392319]
[1741830685970,35.19392319,126.57,126.52,35.19392319]
[1741830686335,7.9001,126.58,126.53,52.74527022]
[1741830686547,67.66139146,126.64,126.51,18.933972]
[1741830686548,72.49197022,126.61,126.55,52.74527022]
[1741830686744,49.0117426,126.64,126.59,52.74527022]
[1741830686745,7.897,126.63,126.59,52.74527022]
[1741830686949,10.7615426,126.64,126.61,52.74527022]
[1741830687367,10.7615426,126.64,126.6,52.74527022]
[1741830687943,10.7615426,126.64,126.59,52.74527022]
[1741830688144,10.7615426,126.64,126.6,52.74527022]
[1741830688360,63.50681282,126.64,126.59,52.74527022]
[1741830688562,52.74527022,126.62,126.54,54.33057022]
[1741830688760,52.74527022,126.6,126.55,52.74527022]
[1741830688964,52.74527022,126.57,126.52,52.74527022]
[1741830689167,52.74527022,126.57,126.51,60.44527022]
[1741830689376,52.74527022,126.56,126.51,52.74527022]
[1741830689574,52.74527022,126.57,126.51,52.74527022]
[1741830689759,19.7468,126.61,126.53,52.74527022]
[1741830689962,52.74527022,126.58,126.53,52.74527022]
[1741830690172,52.74527022,126.6,126.5,18.64964886]
[1741830690358,52.74527022,126.57,126.52,52.74527022]
[1741830690851,51.74527022,126.57,126.52,52.74527022]
[1741830691056,7.9013,126.56,126.52,52.74527022]
[1741830692344,19.7502,126.59,126.53,52.74527022]
[1741830692345,7.9008,126.57,126.53,52.74527022]
[1741830692548,61.2809146,126.64,126.56,52.74527022]
[1741830692549,52.74527022,126.63,126.56,52.74527022]
[1741830692757,7.897,126.63,126.58,52.74527022]
[1741830692948,2.8650426,126.64,126.6,52.74527022]
[1741830693367,10.7614426,126.64,126.6,52.74527022]
[1741830693767,10.7614426,126.64,126.62,52.74527022]
[1741830693768,2.8650426,126.64,126.62,52.74527022]
[1741830693974,10.7615426,126.64,126.61,52.74527022]
[1741830694180,2.8650426,126.64,126.62,52.74527022]
[1741830694369,2.8650426,126.64,126.61,52.74527022]
[1741830694567,10.7614426,126.64,126.61,52.74527022]
[1741830695063,25.01197368,126.66,126.6,52.74527022]
[1741830695259,52.74527022,126.65,126.6,52.74527022]
[1741830695460,52.74527022,126.66,126.6,52.74527022]
[1741830695676,7.74,126.7,126.61,52.74527022]
[1741830695858,7.74,126.7,126.63,52.74527022]
[1741830696057,52.74527022,126.68,126.62,52.74527022]
[1741830696255,52.74527022,126.67,126.61,52.74527022]
[1741830696449,52.74527022,126.67,126.62,52.74527022]
[1741830696656,7.8932,126.69,126.63,52.74527022]
[1741830696859,7.8932,126.69,126.64,52.74527022]
[1741830697063,52.74527022,126.71,126.66,52.74527022]
[1741830697259,7.8907,126.73,126.66,52.74527022]
[1741830697466,7.8907,126.73,126.68,52.74527022]
[1741830697773,60.63597022,126.73,126.67,52.74527022]
[1741830697972,52.74527022,126.72,126.67,52.74527022]
[1741830698359,52.74527022,126.72,126.66,52.74527022]
[1741830698556,52.74527022,126.72,126.67,52.74527022]
[1741830698963,7.892,126.71,126.67,52.74527022]
[1741830699976,7.8895,126.75,126.69,52.74527022]
[1741830700178,27.6133,126.75,126.69,52.74527022]
[1741830700380,52.74527022,126.74,126.69,52.74527022]
[1741830700886,27.6133,126.75,126.73,52.74527022]
[1741830700887,7.8895,126.75,126.73,52.74527022]
[1741830701178,27.609,126.77,126.72,52.74527022]
[1741830701484,52.74527022,126.74,126.69,52.74527022]
[1741830702172,52.74527022,126.73,126.68,7.78]
[1741830702483,52.74527022,126.75,126.7,52.74527022]
[1741830702685,80.35427022,126.77,126.71,52.74527022]
[1741830703369,52.74527022,126.76,126.71,52.74527022]
[1741830703864,52.74527022,126.75,126.7,52.74527022]
[1741830704065,27.609,126.77,126.69,52.74527022]
[1741830704274,52.74527022,126.75,126.7,52.74527022]
[1741830704469,27.609,126.77,126.68,7.78]
[1741830704470,52.74527022,126.76,126.71,52.74527022]
[1741830704677,60.63357022,126.77,126.71,52.74527022]
[1741830705081,60.63357022,126.77,126.68,15.6738]
[1741830705082,7.8883,126.77,126.72,52.74527022]
[1741830705272,60.63357022,126.77,126.72,52.74527022]
[1741830705583,60.63357022,126.77,126.71,52.74527022]
[1741830706663,7.8883,126.77,126.71,52.74527022]
[1741830706862,52.74527022,126.76,126.71,52.74527022]
[1741830707164,52.74527022,126.75,126.7,52.74527022]
[1741830707580,52.74527022,126.76,126.7,52.74527022]
[1741830707986,27.609,126.77,126.71,52.74527022]
[1741830707987,60.63357022,126.77,126.71,52.74527022]
[1741830708486,42.94246239,126.77,126.71,35.05416239]